Cogmind - Beta 16 @@@ ROGUE MODE // 2025.11.26 @ 15:48:49 Player: LJ Result: Destroyed by H-61 Shepherd with Heavy Assault Cannon Performance ------------- Evolutions (2) 1000 Regions Visited (6) 1200 Robots Destroyed (31) 155 Value Destroyed (1170) 1170 Prototype IDs (24) 480 Alien Tech Used (0) 0 Bonus (300) 300 TOTAL SCORE: 4305 Bonus ------- Aligned with FarCom 300 Cogmind --------- Core Integrity 0/550 Matter 158/300 Energy 78/100 System Corruption 0% Temperature Cool (0) Movement Core (100) Ox1 Location -8/Materials Parts ------- > --- POWER (1) -------- (None) > --- PROPULSION (4) --- (None) > --- UTILITY (4) ------ Lightpack 2.0 > --- WEAPON (2) ------- (None) > --- INVENTORY (40) --- Light Ion Engine Light Treads Advanced Treads Advanced Treads Titanium Leg Cesium-ion Thruster Cesium-ion Thruster Cesium-ion Thruster Heat Sink Small Storage Unit Compact Battery (200) Medium Matter Pod (76) High-capacity Matter Pod (0) EM Pulse Cannon Peak State ------------ > --- POWER ------------ Light Ion Engine > --- PROPULSION ------- Advanced Treads Advanced Treads Advanced Treads Advanced Treads > --- UTILITY ---------- Lightpack 2.0 Terrain Scanner > --- WEAPON ----------- EM Pulse Cannon Improved Assault Rifle > --- INVENTORY -------- Light Treads Light Treads Titanium Leg Cesium-ion Thruster Cesium-ion Thruster Cesium-ion Thruster Small Storage Unit Medium Matter Pod Heavy Particle Cannon Heavy Assault Rifle Rocket Launcher [Rating: 52] Favorites ----------- Power Light Ion Engine Engine Light Ion Engine Propulsion Advanced Treads Treads Advanced Treads Leg Aluminum Leg Utility Small Storage Unit Device Terrain Scanner Storage Small Storage Unit Weapon Improved Assault Rifle Energy Cannon Heavy Particle Cannon Ballistic Gun Improved Assault Rifle Launcher Rocket Launcher Build | -11 -10 -9 -9 -9 -8 -8 ------- Run | Yrd Mat Mat Min Exi Min Mat Slots Evolved 4 | . . 2 . . . 2 Power . | . . . . . . . Propulsion 2 | . . 2 . . . . Utility 2 | . . . . . . 2 Weapon . | . . . . . . . Parts Attached 30 | 6 3 7 1 . . 13 Power 4 | 1 1 . 1 . . 1 Engine 4 | 1 1 . 1 . . 1 Core . | . . . . . . . Reactor . | . . . . . . . Propulsion 12 | 2 . 4 . . . 6 Treads 6 | . . 4 . . . 2 Leg 6 | 2 . . . . . 4 Wheel . | . . . . . . . Hover . | . . . . . . . Flight . | . . . . . . . Utility 5 | 1 2 1 . . . 1 Device 1 | . 1 . . . . . Storage 4 | 1 1 1 . . . 1 Processor . | . . . . . . . Hackware . | . . . . . . . Protection . | . . . . . . . Artifact . | . . . . . . . Weapon 9 | 2 . 2 . . . 5 Energy Gun . | . . . . . . . Energy Cannon 2 | . . . . . . 2 Ballistic Gun 6 | 2 . 2 . . . 2 Ballistic Cannon . | . . . . . . . Launcher 1 | . . . . . . 1 Special Weapon . | . . . . . . . Impact Weapon . | . . . . . . . Slashing Weapon . | . . . . . . . Piercing Weapon . | . . . . . . . Special Melee Weapon . | . . . . . . . Unidentified Prototypes 1 | . . 1 . . . . Parts Lost 16 | . . 1 . . . 15 Power 2 | . . 1 . . . 1 Propulsion 7 | . . . . . . 7 Utility 1 | . . . . . . 1 Weapon 6 | . . . . . . 6 Highest Loss Streak 10 | . . 1 . . . 10 To Critical Strikes . | . . . . . . . Average Backups 8 | 2 6 7 8 6 5 13 Power . | . . . . . . . Propulsion 4 | 1 4 5 4 2 2 7 Utility 2 | . . 1 2 1 2 3 Weapon 1 | . 1 1 1 1 1 2 Tool/Special . | . . . . . . . Unused Backups 10 | . . 1 . 2 . 7 Power . | . . . . . . . Propulsion 6 | . . 1 . 1 . 4 Utility 3 | . . . . . . 3 Weapon 1 | . . . . 1 . . Tool/Special . | . . . . . . . Average Slot Usage (%) 91 | . 95 92 89 99 100 78 Engine 9 | . 14 9 1 11 11 8 Treads 33 | . . 37 44 44 44 26 Leg 5 | . 28 1 . . . 7 Device 3 | . 4 7 . . . 8 Storage 16 | . 18 14 22 21 22 9 Ballistic Gun 20 | . 28 21 22 22 22 16 Peak Build Rating 52 | 6 7 20 20 23 23 52 Average Rating 28 | 5 6 17 19 21 23 49 On Entrance 14 | . 6 7 19 20 23 23 Avg Prop Armor Cover (%) 21 | . . . 22 21 21 . Naked Turns . | . . . . . . . Heaviest Build 93 | 13 93 16 16 16 16 20 Greatest Support 88 | 20 20 88 88 22 88 88 Greatest Overweight (x) 4 | . 4 3 . . . 3 Average Overweight (x) . | . . . . . . . Largest Inventory Capacity 40 | 8 25 8 8 8 8 40 Average Capacity 19 | 7 14 8 8 7 8 39 Most Carried 17 | 6 7 8 8 8 7 17 Average Carried 9 | 2 6 7 8 7 7 14 Final Capacity 40 | 8 8 8 8 8 8 40 Final Carried 14 | 6 6 8 8 7 7 14 Class Distribution -------------------- 66% | Mutant 31% | Hauler-Skirmisher Dominant Class ---------------- Mutant | -10/Materials Mutant | -9/Materials Mutant | -9/Mines Mutant | -9/Exiles Mutant | -8/Mines Hauler-Skirmisher | -8/Materials Resources | -11 -10 -9 -9 -9 -8 -8 ----------- Run | Yrd Mat Mat Min Exi Min Mat Matter Collected 1046 | 248 . 294 12 . 66 426 Remotely . | . . . . . . . Salvage Created 1163 | . 75 294 29 . . 765 Parts 81 | . 4 20 5 . . 52 Haulers Intercepted 1 | . . . . . . 1 Recyclers Shooed . | . . . . . . . Parts Field Recycled . | . . . . . . . Retrieved Matter . | . . . . . . . Parts Self-Destructed . | . . . . . . . Prevented . | . . . . . . . Parts Restored . | . . . . . . . Kills | -11 -10 -9 -9 -9 -8 -8 ------- Run | Yrd Mat Mat Min Exi Min Mat Combat Hostiles Destroyed 25 | . 2 6 2 . . 15 Guns 21 | . 2 6 2 . . 11 AOE 4 | . . . . . . 4 Classes Destroyed 10 | . 1 1 1 . . 7 Worker 2 | . . . . . . 2 Builder 1 | . . . . . . 1 Hauler 1 | . . . . . . 1 Mechanic 1 | . . . . . . 1 Watcher 1 | . . . . . . 1 Swarmer 2 | . . . 2 . . . Grunt 12 | . 2 3 . . . 7 Duelist 1 | . . . . . . 1 Sentry 6 | . . 3 . . . 3 Specialist 4 | . . . . . . 4 Best Kill Streak 10 | . 1 3 2 . . 10 Combat Bots Only 5 | . 1 3 2 . . 5 Max Kills in Single Turn 2 | . 1 2 1 . . 2 Gunslinging 1 | . . 1 . . . . Exploded 2 | . . . . . . 2 Melee . | . . . . . . . Uniques/NPCs Destroyed . | . . . . . . . Combat | -11 -10 -9 -9 -9 -8 -8 -------- Run | Yrd Mat Mat Min Exi Min Mat Hostile Shots Fired 260 | . 22 39 14 . . 185 Missed 71 | . 6 12 4 . . 49 Hits 189 | . 16 27 10 . . 136 Melee 4 | . . . . . . 4 Projectile 185 | . 16 27 10 . . 132 Critical Strikes 5 | . . . . . . 5 Damage Taken 3137 | . 221 353 93 . . 2470 Core 648 | . 41 23 26 . . 558 Absorbed by Shields . | . . . . . . . Core Remaining (%) 90 | 100 83 . . . 87 . Volleys Fired 99 | . 16 16 3 . . 64 Largest 2 | . 2 2 2 . . 2 Hottest 138 | . 40 46 46 . . 138 Shots Fired 192 | . 32 32 6 . . 122 Gun 176 | . 32 32 6 . . 106 Cannon 5 | . . . . . . 5 Launcher 11 | . . . . . . 11 Special . | . . . . . . . Kinetic 176 | . 32 32 6 . . 106 Thermal 4 | . . . . . . 4 Explosive 11 | . . . . . . 11 Electromagnetic 1 | . . . . . . 1 Robot Hit Streak 24 | . 24 18 3 . . 18 Robot Miss Streak 4 | . 1 1 2 . . 4 Penetration Max . | . . . . . . . Secondary Targets 4 | . 1 1 1 . . 1 Max Gunslinging Chain 1 | . 1 1 1 . . 1 Shots Hit Robots 149 | . 29 27 3 . . 90 Core Hits 68 | . 6 9 2 . . 51 Critical Kills . | . . . . . . . Critical Parts Destroyed . | . . . . . . . Critical Strikes . | . . . . . . . Melee Attacks . | . . . . . . . Impact . | . . . . . . . Slashing . | . . . . . . . Piercing . | . . . . . . . Sneak Attacks . | . . . . . . . Combat Hostiles . | . . . . . . . Follow-up Attacks . | . . . . . . . Damage Inflicted 3139 | . 302 369 45 . . 2423 Guns 1963 | . 302 369 45 . . 1247 Cannons 25 | . . . . . . 25 Explosions 1149 | . . . . . . 1149 Melee . | . . . . . . . Ramming 2 | . . . . . . 2 Kinetic 1963 | . 302 369 45 . . 1247 Thermal 187 | . . . . . . 187 Explosive 987 | . . . . . . 987 Electromagnetic . | . . . . . . . Impact . | . . . . . . . Slashing . | . . . . . . . Piercing . | . . . . . . . Highest Corruption . | . . . . . . . Average Corruption . | . . . . . . . Corruption Purged . | . . . . . . . Corruption Blocked . | . . . . . . . Overload Shots . | . . . . . . . Overflow Damage 83 | . . . . . . 83 Projectiles 24 | . . . . . . 24 Explosions 59 | . . . . . . 59 Melee . | . . . . . . . Knockbacks . | . . . . . . . Impact . | . . . . . . . Kinetic . | . . . . . . . Secondary . | . . . . . . . Self-Inflicted Damage 147 | . . . . . . 147 Shots 3 | . . . . . . 3 Rammed . | . . . . . . . Targets Rammed 1 | . . . . . . 1 Kicked 1 | . . . . . . 1 Crushed . | . . . . . . . Highest Temperature 45 | . 18 . . . . 45 Average Temperature 12 | . 8 . . . . 14 Received Heat Transfer 1074 | . 126 129 . . . 819 Siege Activations . | . . . . . . . Martial Activations . | . . . . . . . Shielding Activations . | . . . . . . . Robots Disrupted . | . . . . . . . Combat Hostiles . | . . . . . . . Robots Corrupted . | . . . . . . . Combat Hostiles . | . . . . . . . Parts Fried . | . . . . . . . Impact Corruptions . | . . . . . . . Robots Melted . | . . . . . . . Combat Hostiles . | . . . . . . . Parts Melted . | . . . . . . . Heat Transferred 137 | . . . . . . 137 Parts Sabotaged . | . . . . . . . Parts Stolen . | . . . . . . . Parts Stripped . | . . . . . . . Power Chain Reactions . | . . . . . . . Alert | -11 -10 -9 -9 -9 -8 -8 ------- Run | Yrd Mat Mat Min Exi Min Mat Maximum Alert Level 1 | . . . . . . 1 Low Security (%) 87 | 100 100 100 100 . 100 74 Level 1 12 | . . . . . . 25 Level 2 . | . . . . . . . Level 3 . | . . . . . . . Level 4 . | . . . . . . . Level 5 . | . . . . . . . High Security . | . . . . . . . Max Security . | . . . . . . . Peak Influence 332 | . 40 91 65 . . 332 Initial 31 | . . . 31 . . . Average 42 | . 4 27 18 . . 76 Influence Increases 913 | . 64 162 65 . . 622 Destroy 0b10 Robot/C 500 | . 40 120 40 . . 300 Destroy 0b10 Robot/NC 30 | . . . . . . 30 Destroy Leader 144 | . 10 40 10 . . 84 Successful Hack 32 | . 14 . . . . 18 Disable Machine 45 | . . . . . . 45 Destroy Structure 102 | . . 2 . . . 100 Partial Spotted 15 | . . . . . . 15 Lose Combat Pursuer 45 | . . . 15 . . 30 Influence Decreases 638 | . 64 81 101 45 . 347 Entered New Map 95 | . . . 50 45 . . Time Decay 383 | . 64 71 51 . . 197 Lost Part 160 | . . 10 . . . 150 Squads Dispatched 4 | . . 1 . . . 3 Investigation . | . . . . . . . Extermination . | . . . . . . . Reinforcement 4 | . . 1 . . . 3 Assault . | . . . . . . . Garrison . | . . . . . . . Intercept . | . . . . . . . Searches Triggered . | . . . . . . . Construction Impeded . | . . . . . . . Haulers Reinforced . | . . . . . . . Active Scanning Responses . | . . . . . . . Cargo Convoy Interrupts . | . . . . . . . Stealth | -11 -10 -9 -9 -9 -8 -8 --------- Run | Yrd Mat Mat Min Exi Min Mat Distress Signals 6 | . . 1 . . . 5 Communications Jammed . | . . . . . . . Distress Signals . | . . . . . . . Times Spotted 43 | . 6 7 3 . . 27 Peak Tracking Total 7 | . 2 3 3 . . 7 Tactical Retreats 3 | . . . 1 . . 2 Traps | -11 -10 -9 -9 -9 -8 -8 ------- Run | Yrd Mat Mat Min Exi Min Mat Traps Triggered 1 | . 1 . . . . . Indirectly . | . . . . . . . Trap Hack Attempts . | . . . . . . . Triggered . | . . . . . . . Disarmed . | . . . . . . . Reprogrammed . | . . . . . . . Reused . | . . . . . . . Traps Extracted . | . . . . . . . Installed . | . . . . . . . Triggered . | . . . . . . . Machines | -11 -10 -9 -9 -9 -8 -8 ---------- Run | Yrd Mat Mat Min Exi Min Mat Machines Disabled 3 | . . . . . . 3 Max in Single Turn 2 | . . . . . . 2 Machines Repaired . | . . . . . . . Machines Dismantled . | . . . . . . . Machines Sabotaged . | . . . . . . . Overloaded Fab Kills . | . . . . . . . Hacking | -11 -10 -9 -9 -9 -8 -8 --------- Run | Yrd Mat Mat Min Exi Min Mat Machines Accessed 12 | . 2 1 . 5 . 4 Terminals 6 | . 2 1 . . . 3 Fabricators . | . . . . . . . Repair Stations . | . . . . . . . Recycling Units . | . . . . . . . Scanalyzers 1 | . . . . . . 1 Garrison Access . | . . . . . . . Total Hacks 69 | . 7 2 . 50 . 10 Successful 59 | . 2 . . 50 . 7 Failed 10 | . 5 2 . . . 3 Catastrophic 2 | . . . . . . 2 Database Lockouts . | . . . . . . . Manual 11 | . 3 2 . 3 . 3 Terminals 15 | . 7 2 . . . 6 Fabricators . | . . . . . . . Repair Stations . | . . . . . . . Recycling Units . | . . . . . . . Scanalyzers 4 | . . . . . . 4 Garrison Access . | . . . . . . . Terminal Hacks 55 | . 2 . . 50 . 3 Record 49 | . . . . 49 . . Level Access Points 1 | . . . . . . 1 Locate Traps 1 | . 1 . . . . . Dispatch Records 1 | . 1 . . . . . Zone Layout 2 | . . . . . . 2 Proto ID Catalog 1 | . . . . 1 . . Fabricator Hacks . | . . . . . . . Repair Station Hacks . | . . . . . . . Recycling Unit Hacks . | . . . . . . . Scanalyzer 4 | . . . . . . 4 Insert Component 1 | . . . . . . 1 Analyze 2 | . . . . . . 2 Retrieve Study 1 | . . . . . . 1 Garrison Access Hacks . | . . . . . . . Unauthorized Hacks . | . . . . . . . Terminals . | . . . . . . . Fabricators . | . . . . . . . Repair Stations . | . . . . . . . Recycling Units . | . . . . . . . Scanalyzers . | . . . . . . . Garrison Access . | . . . . . . . Data Cores Recovered . | . . . . . . . Used . | . . . . . . . Hacking Detections 4 | . 1 1 . . . 2 Full Trace Events 1 | . . . . . . 1 Feedback Events . | . . . . . . . Feedback Blocked . | . . . . . . . Robot Schematics Acquired . | . . . . . . . Robots Built . | . . . . . . . Authchips . | . . . . . . . Time . | . . . . . . . Total Robot Build Rating . | . . . . . . . Part Schematics Acquired 1 | . . . . . . 1 Parts Built . | . . . . . . . Authchips . | . . . . . . . Time . | . . . . . . . Total Part Build Rating . | . . . . . . . Part Studies Acquired 1 | . . . . . . 1 Parts Repaired . | . . . . . . . Time . | . . . . . . . Parts Recycled . | . . . . . . . Recycled Matter . | . . . . . . . Retrieved Matter . | . . . . . . . Retrieved Components . | . . . . . . . Parts Scanalyzed 1 | . . . . . . 1 Part Schematics Acquired 1 | . . . . . . 1 Parts Damaged . | . . . . . . . Bothacking | -11 -10 -9 -9 -9 -8 -8 ------------ Run | Yrd Mat Mat Min Exi Min Mat Used RIF Installer . | . . . . . . . Robots Hacked . | . . . . . . . Non-combat . | . . . . . . . Combat . | . . . . . . . Robot Hacks Applied . | . . . . . . . Relay Couplers Released . | . . . . . . . Fabnet Peak Effective % . | . . . . . . . Robots Rewired . | . . . . . . . Allies Hacked . | . . . . . . . Hacks Repelled . | . . . . . . . Allies | -11 -10 -9 -9 -9 -8 -8 -------- Run | Yrd Mat Mat Min Exi Min Mat Total Allies . | . . . . . . . Largest Group . | . . . . . . . Highest-Rated Group . | . . . . . . . Highest-Rated Ally . | . . . . . . . Total Orders . | . . . . . . . Ally Attacks . | . . . . . . . Total Damage . | . . . . . . . Kills . | . . . . . . . Allies Corrupted . | . . . . . . . Allies Melted . | . . . . . . . Intel | -11 -10 -9 -9 -9 -8 -8 ------- Run | Yrd Mat Mat Min Exi Min Mat Active Infowar (turns) 1809 | . 158 143 . . . 1508 Terrain 1809 | . 158 143 . . . 1508 Robot Analysis Total . | . . . . . . . Derelict Logs Recovered . | . . . . . . . Drone Launches . | . . . . . . . Drone Recoveries . | . . . . . . . Exploration | -11 -10 -9 -9 -9 -8 -8 ------------- Run | Yrd Mat Mat Min Exi Min Mat Turns Passed 4531 | 80 447 236 185 1540 532 1511 Spaces Moved 2559 | 58 211 105 119 1059 365 642 Core 28 | 5 . 4 . . . 19 Treads 2165 | . . 93 119 1059 365 529 Legs 366 | 53 211 8 . . . 94 Wheels . | . . . . . . . Hover . | . . . . . . . Flight . | . . . . . . . Fastest Speed 50 | 50 120 120 145 145 145 100 Average Speed 145 | 113 174 145 145 145 145 141 Slowest Speed 400 | 120 400 200 145 145 145 200 Overloaded Moves . | . . . . . . . Propulsion Burnouts . | . . . . . . . Robots Hopped . | . . . . . . . Potential Cave-ins . | . . . . . . . Cave-ins Triggered . | . . . . . . . Exploration Rate (%) 37 | 4 32 7 36 92 62 32 Regions Visited 6 Branch Regions 3 Pre-discovered Areas 1 | . . . . 1 . . Known Exits Taken . | . . . . . . . Unknown Exits Taken 6 | 1 1 1 1 1 1 . Scrap Searched 1 | . . . . . 1 . Spaces Dug . | . . . . . . . Terrain Destroyed 118 | . . . . . . 118 Melee . | . . . . . . . Projectile 3 | . . . . . . 3 AOE 115 | . . . . . . 115 Terrain Rammed . | . . . . . . . Walls Destroyed . | . . . . . . . Machines Disabled . | . . . . . . . Actions | -11 -10 -9 -9 -9 -8 -8 --------- Run | Yrd Mat Mat Min Exi Min Mat Total 3162 | 69 260 156 125 1064 368 1120 Wait 429 | . 26 23 1 . 4 375 Move 2553 | 57 210 104 118 1058 364 642 Hop . | . . . . . . . Pick Up 27 | 6 2 1 1 2 . 15 Fast Attach 19 | 6 3 6 1 1 . 2 Attach 10 | . 1 . . . . 9 Detach 6 | . 1 2 . . . 3 Swap 9 | . . 1 . . . 8 Drop 9 | . 1 3 1 3 . 1 Fire 99 | . 16 16 3 . . 64 Melee . | . . . . . . . Ram . | . . . . . . . Kick 1 | . . . . . . 1 Crush . | . . . . . . . Escape Stasis . | . . . . . . . Rewire . | . . . . . . . Trap . | . . . . . . . Miscellaneous . | . . . . . . . Route ------- -11/Scrapyard -10/Materials -9/Materials -9/Mines -9/Exiles (discovered 2 exits: [*Min x2]) -8/Mines -8/Materials (discovered 3 exits: Fac x3) History --------- Turn | Location | Event 5 | -11/Scrapyard | Discovered new exit (range 16) 81 | -11/Scrapyard | Entered Materials 251 | -10/Materials | Discovered new exit (range 16) 302 | -10/Materials | Build established: Mutant 528 | -10/Materials | Entered another Materials area 528 | -9/Materials | Evolved 2 slots: Propulsion x2 528 | -9/Materials | Discovered new exit (range 7) 745 | -9/Materials | Met 8R-AWN 764 | -9/Materials | Entered Mines 765 | -9/Mines | Followed 8R-AWN into the Mines 771 | -9/Mines | Received a Rocket Launcher from a helpful Derelict 943 | -9/Mines | Discovered new exit (range 5) 949 | -9/Mines | Entered Exiles 970 | -9/Exiles | Discovered new exit (range 15) 989 | -9/Exiles | Welcomed by 8R-AWN 1026 | -9/Exiles | Met EX-HEX 1084 | -9/Exiles | Met EX-DEC 1100 | -9/Exiles | Learned location of Zion (-6) 1177 | -9/Exiles | Discovered new exit (range 11) 1279 | -9/Exiles | Met EX-BIN 1305 | -9/Exiles | Aligned with FarCom system 1306 | -9/Exiles | Given EX-Vault access code 1416 | -9/Exiles | Opened EX-Vault 1458 | -9/Exiles | Warned to stay clear of 0b10 Research branches 1583 | -9/Exiles | Found Lightpack 2.0 1862 | -9/Exiles | Visited The Gauntlet 2255 | -9/Exiles | Learned about 8R-AWN's background 2489 | -9/Exiles | Left Exiles lab with Lightpack 2.0 2489 | -9/Exiles | Entered Mines 2686 | -8/Mines | Discovered new exit (range 8) 3021 | -8/Mines | Entered Materials 3021 | -8/Materials | Evolved 2 slots: Utility x2 3322 | -8/Materials | Build established: Hauler-Skirmisher 3529 | -8/Materials | Identified exit to Factory 4181 | -8/Materials | Lost 3 parts (3n) 4513 | -8/Materials | Core integrity fell below 50% 4526 | -8/Materials | Core integrity fell below 20% 4532 | -8/Materials | Destroyed by H-61 Shepherd with Heavy Assault Cannon Last Messages --------------- U-05 Engineer lays Concrete. Hvy. Particle Cannon destroyed. U-05 Engineer lays Concrete. U-05 Engineer builds a Wall. U-05 Engineer lays Concrete. Critical hit (Burn: +37). K-01 Serf collects debris. Acquired 95 matter. U-05 Engineer lays Concrete. K-01 Serf collects debris. U-05 Engineer lays Concrete. Knocked back. U-05 Engineer lays Concrete. U-05 Engineer knocked back. U-05 Engineer builds a Wall. M-28 Smith repairs G-47 Trooper. M-28 Smith fits Backup Power III on G-47 Trooper. Terrain Scanner destroyed. Critical hit (Blast). Map ----- +----------------------------------------------------+ | ??????????????????????# ## " | | ?????????????????????## ## | | ????????????????????? # ##""" | | ????????????????????? # ##""" | | ????????????????????? # ##""" | | ??????????????????#?? # ## | | ??????????????????# ? # ## | | ??????????????????# # ## | | ??????????????????# #####+########### | | ??????????????????# | | ???????????? ???# | | ???????????# ???# | | ???????????# ??????##### #######T## | | ???????????# ?????? # #?#?#?###= | | ???????????# ????T" # #??####?# | | ???????????# ??? ?? # #???##### | | ???????????# w?????? # ##### ## | | ???????????# #???? # !# =[*! # | | ???????????# ## ???""" # [=#%*=![[[# | | ???????????# ##????""" # ![/ !%=[[[ | | ???????#???# +????""" # #![=*[[[ | | ???????##### #???? # # =[ #### | | ???????#!! ####+##### ####### | | ???????#!! % % g ! | | ???????#[[ g % ! | | ???????#[[ %@ % | | ?????#?#== ## ####; ## ###### | | ????????????# ???##x ## #??###### | | ????????????#?????# ##==!![[#?#????## | | ????????????? ????# ##==!![[#??#????# | | ??????????????????#x #########?????##? | | ??????????????????# #???????#??????#? | | ??????????????????# #????#?????#????? | | ??????????????????+ #???????????????? | | ??????????????????# #???????????????? | | ??????????????????# #???????????????? | | ??????????????????# #???????????????? | | ?????????????????? #???????????????? | | ?????????????????? #???????????????? | | ??????????????????? ????????????????? | | ??????????????????????????????????????? | | ??????????????????????????????????????? | | ?????????????